Cogmind - Beta 14 @@@ ROGUE MODE // 2024.11.21 @ 01:08:22 Player: Zane Result: Destroyed by B-75 Beast with Heavy Machine Gun Performance ------------- Evolutions (4) 2000 Regions Visited (9) 1800 Robots Destroyed (59) 295 Value Destroyed (1513) 1513 Prototype IDs (31) 620 Alien Tech Used (0) 0 Bonus (597) 597 TOTAL SCORE: 6825 Bonus ------- Registered with UFD 300 Met Data Miner 300 Friendly Fire -3 Cogmind --------- Core Integrity 0/850 Matter 465/500 Energy 80/100 System Corruption 4% Temperature Cool (12) Movement Core (550) Ox10 Location -5/Proximity Caves Parts ------- > --- POWER (2) -------- (None) > --- PROPULSION (3) --- (None) > --- UTILITY (7) ------ Large Storage Unit High-capacity Matter Pod Improved Light Armor Plating > --- WEAPON (3) ------- Molecular Deconstructor > --- INVENTORY (15) --- Armored Wheel Improved Heat Sink Advanced Heat Sink Advanced Sensor Array Seismic Detector Phase Shifter Authchip [Propulsion] Mapping Drone Bay (3/3) Peak State ------------ > --- POWER ------------ Nuclear Core Improved Deuterium Engine > --- PROPULSION ------- Overtuned Flexi-carbon Leg Arachnoskeleton > --- UTILITY ---------- Scrap Suit Large Storage Unit Advanced Terrain Scanner Seismic Detector Advanced Targeting Computer Force Field > --- WEAPON ----------- Coil Gun Molecular Deconstructor > --- INVENTORY -------- Improved Ion Engine Medium Treads Armored Leg Armored Wheel Advanced Heat Sink High-capacity Matter Pod Advanced Sensor Array Seismic Detector Phase Shifter Authchip [Propulsion] Mapping Drone Bay Phase Cannon Power Sword [Rating: 85] Favorites ----------- Power Light Ion Engine Engine Light Ion Engine Power Core Nuclear Core Propulsion Light Treads Treads Light Treads Leg Arachnoskeleton Utility Seismic Detector Device Seismic Detector Storage Large Storage Unit Processor Advanced Targeting Computer Protection Improved Medium Armor Plating Weapon Autogun Energy Cannon Phase Cannon Ballistic Gun Autogun Ballistic Cannon Battle Cannon Launcher Grenade Launcher Special Weapon Molecular Deconstructor Slashing Weapon Power Sword Build | -11 -10 -10 -9 -9 -6 -6 -6 -6 -5 ------- Run | Yrd Mat Sub Rec Scr Fac Low Low Dat Pro Slots Evolved 8 | . . . . . 8 . . . . Power 1 | . . . . . 1 . . . . Propulsion 1 | . . . . . 1 . . . . Utility 5 | . . . . . 5 . . . . Weapon 1 | . . . . . 1 . . . . Parts Attached 56 | 7 3 8 2 7 15 4 4 . 6 Power 9 | 1 . 1 . 1 4 . 1 . 1 Engine 6 | 1 . 1 . 1 3 . . . . Core 3 | . . . . . 1 . 1 . 1 Reactor . | . . . . . . . . . . Propulsion 9 | 2 . 3 . . 2 . . . 2 Treads 5 | 2 . 3 . . . . . . . Leg 4 | . . . . . 2 . . . 2 Wheel . | . . . . . . . . . . Hover . | . . . . . . . . . . Flight . | . . . . . . . . . . Utility 18 | 2 1 2 . 1 8 1 1 . 2 Device 11 | 1 . 2 . 1 6 1 . . . Storage 4 | 1 1 . . . 1 . . . 1 Processor 1 | . . . . . 1 . . . . Hackware . | . . . . . . . . . . Protection 2 | . . . . . . . 1 . 1 Artifact . | . . . . . . . . . . Weapon 20 | 2 2 2 2 5 1 3 2 . 1 Energy Gun . | . . . . . . . . . . Energy Cannon 1 | . . . . . . . 1 . . Ballistic Gun 14 | 2 2 1 1 5 1 2 . . . Ballistic Cannon 1 | . . . 1 . . . . . . Launcher 1 | . . 1 . . . . . . . Special Weapon 2 | . . . . . . 1 . . 1 Impact Weapon . | . . . . . . . . . . Slashing Weapon 1 | . . . . . . . 1 . . Piercing Weapon . | . . . . . . . . . . Special Melee Weapon . | . . . . . . . . . . Unidentified Prototypes 1 | . . . . . . 1 . . . Parts Lost 18 | . . 1 . . . . 4 . 13 Power 3 | . . . . . . . . . 3 Propulsion 4 | . . 1 . . . . . . 3 Utility 6 | . . . . . . . 1 . 5 Weapon 5 | . . . . . . . 3 . 2 Highest Loss Streak 13 | . . 1 . . . . 2 . 13 To Critical Strikes . | . . . . . . . . . . Average Slot Usage (%) 93 | . 100 100 100 99 69 72 70 66 39 Engine 11 | . 14 14 14 14 8 5 1 . . Core 1 | . . . . . . 5 8 11 5 Treads 22 | . 28 28 28 28 . . . . . Leg 2 | . . . . . 11 11 11 11 6 Device 14 | . 14 14 14 14 17 22 17 16 8 Storage 12 | . 14 14 14 14 9 5 5 5 5 Processor 1 | . . . . . 5 5 5 5 2 Ballistic Gun 19 | . 28 18 14 18 16 16 7 . . Ballistic Cannon 4 | . . . 13 9 . . . . . Launcher 1 | . . 9 . . . . . . . Peak Build Rating 85 | 7 11 13 13 22 78 85 79 73 73 Average Rating 25 | 5 9 11 13 16 69 78 76 73 41 On Entrance 36 | . 7 11 13 13 22 77 79 73 73 Naked Turns . | . . . . . . . . . . Heaviest Build 69 | 13 30 30 30 38 65 65 69 64 64 Greatest Support 73 | 40 40 40 40 40 73 73 73 73 73 Greatest Overweight (x) 7 | 1 . . . . . . . . 7 Average Overweight (x) . | . . . . . . . . . . Largest Inventory Capacity 15 | 8 15 15 15 15 15 15 15 15 15 Average Capacity 14 | 7 13 15 15 15 15 15 15 15 15 Most Carried 15 | 5 15 15 15 15 15 15 15 15 15 Average Carried 13 | 3 12 14 14 14 12 14 14 15 13 Final Capacity 15 | 8 15 15 15 15 15 15 15 15 15 Final Carried 15 | 4 15 14 15 15 15 15 15 15 8 Class Distribution -------------------- 86% | Mutant 13% | Gunner Dominant Class ---------------- Mutant | -10/Materials Mutant | -10/Subcaves Mutant | -9/Recycling Mutant | -9/Scraptown Gunner | -6/Factory Gunner | -6/Lower Caves Mutant | -6/Lower Caves Mutant | -6/Data Miner Mutant | -5/Proximity Caves Resources | -11 -10 -10 -9 -9 -6 -6 -6 -6 -5 ----------- Run | Yrd Mat Sub Rec Scr Fac Low Low Dat Pro Matter Collected 2808 | 278 493 204 263 280 819 271 170 . 30 Remotely . | . . . . . . . . . . Salvage Created 1997 | 41 655 227 . . 370 277 322 . 105 Parts 130 | 6 55 22 . . 13 14 14 . 6 Haulers Intercepted 2 | . 1 . . . 1 . . . . Recyclers Shooed 3 | 1 2 . . . . . . . . Parts Field Recycled . | . . . . . . . . . . Retrieved Matter . | . . . . . . . . . . Parts Self-Destructed 49 | . . 15 . . . 18 10 . 6 Prevented . | . . . . . . . . . . Kills | -11 -10 -10 -9 -9 -6 -6 -6 -6 -5 ------- Run | Yrd Mat Sub Rec Scr Fac Low Low Dat Pro Combat Hostiles Destroyed 44 | . 15 11 . . 2 6 6 . 4 Melee 4 | . . . . . . . 1 . 3 Guns 30 | . 15 3 . . 2 6 4 . . Cannons 2 | . . . . . . . 1 . 1 AOE 8 | . . 8 . . . . . . . Classes Destroyed 15 | 1 7 2 . . 2 2 1 . . Worker 2 | . 2 . . . . . . . . Tunneler 3 | 2 1 . . . . . . . . Hauler 2 | . 1 . . . 1 . . . . Recycler 2 | . 1 . . . 1 . . . . Operator 1 | . 1 . . . . . . . . Turret 2 | . . 2 . . . . . . . Watcher 3 | . 3 . . . . . . . . Swarmer 24 | . 9 7 . . . 3 1 . 4 Grunt 7 | . 6 . . . . 1 . . . Duelist 2 | . . . . . . . 2 . . Sentry 3 | . . . . . 1 . 2 . . Specialist 1 | . . . . . . 1 . . . Hunter 1 | . . . . . . 1 . . . Programmer 2 | . . . . . 1 . 1 . . Subdweller 4 | . . 4 . . . . . . . Best Kill Streak 5 | 1 4 5 . . 1 5 3 . 3 Combat Bots Only 5 | . 3 4 . . 1 5 3 . 3 Max Kills in Single Turn 2 | 1 1 2 . . 1 1 1 . 1 Gunslinging . | . . . . . . . . . . Exploded 2 | . . 2 . . . . . . . Melee 1 | . . . . . . . 1 . 1 Uniques/NPCs Destroyed . | . . . . . . . . . . Combat | -11 -10 -10 -9 -9 -6 -6 -6 -6 -5 -------- Run | Yrd Mat Sub Rec Scr Fac Low Low Dat Pro Hostile Shots Fired 491 | . 49 74 . . 85 43 75 . 165 Missed 135 | . 14 31 . . 17 11 19 . 43 Damage Taken 4403 | . 339 445 . . 530 264 676 . 2149 Core 1105 | . 86 152 . . 56 26 58 . 727 Absorbed by Shields 581 | . . . . . . 245 279 . 57 Regen/Repaired (Parts) 4 | . . . . . . 4 . . . Core Remaining (%) 52 | 100 . . . 4 . . . . . Volleys Fired 160 | 4 53 29 4 . 18 19 23 . 10 Largest 3 | 2 2 2 1 . 3 3 3 . 1 Hottest 145 | 40 46 53 39 . 90 90 145 . 85 Shots Fired 342 | 8 107 46 4 . 54 56 57 . 10 Gun 292 | 8 107 30 . . 54 56 37 . . Cannon 33 | . . . 4 . . . 20 . 9 Launcher 16 | . . 16 . . . . . . . Special 1 | . . . . . . . . . 1 Kinetic 296 | 8 107 30 4 . 54 56 37 . . Thermal 29 | . . . . . . . 20 . 9 Explosive 16 | . . 16 . . . . . . . Electromagnetic . | . . . . . . . . . . Robot Hit Streak 11 | 4 6 6 . . 8 7 9 . 11 Robot Miss Streak 4 | 1 4 3 . . 3 2 4 . 2 Penetration Max 1 | . . . . . . . 1 . . Secondary Targets 2 | . 2 . . . . . . . . Max Gunslinging Chain 1 | . 1 . . . . . . . . Shots Hit Robots 212 | 5 62 21 . . 40 34 37 . 13 Core Hits 93 | 3 31 23 . . 11 9 12 . 4 Critical Kills 1 | . . . . . . . 1 . . Critical Parts Destroyed 1 | . . . . . 1 . . . . Critical Strikes 3 | . . . . . 2 . 1 . . Destroy 3 | . . . . . 2 . 1 . . Melee Attacks 13 | . . . . . . . 2 . 11 Impact . | . . . . . . . . . . Slashing 13 | . . . . . . . 2 . 11 Piercing . | . . . . . . . . . . Sneak Attacks . | . . . . . . . . . . Combat Hostiles . | . . . . . . . . . . Follow-up Attacks . | . . . . . . . . . . Damage Inflicted 4734 | 61 895 737 . . 880 656 1063 . 442 Guns 3175 | 61 881 206 . . 871 656 500 . . Cannons 616 | . . . . . . . 461 . 155 Explosions 531 | . . 531 . . . . . . . Melee 375 | . . . . . . . 88 . 287 Ramming 37 | . 14 . . . 9 . 14 . . Kinetic 3175 | 61 881 206 . . 871 656 500 . . Thermal 616 | . . . . . . . 461 . 155 Explosive 531 | . . 531 . . . . . . . Electromagnetic . | . . . . . . . . . . Impact . | . . . . . . . . . . Slashing 375 | . . . . . . . 88 . 287 Piercing . | . . . . . . . . . . Highest Corruption 4 | . 1 1 1 . 2 3 4 4 4 Average Corruption 1 | . 1 1 1 . 1 2 3 4 4 Corruption Purged . | . . . . . . . . . . Corruption Blocked . | . . . . . . . . . . Effects 55 | . 17 5 8 . 1 7 11 3 3 Message Errors 14 | . 3 2 . . 1 3 3 1 1 Matter Fused 11 | . 5 . 2 . . 1 1 1 1 Heat Flow Errors 9 | . 3 . . . . 1 4 1 . Energy Discharges 5 | . 1 1 1 . . 1 . . 1 Data Loss (minor) 9 | . 3 2 3 . . . 1 . . Data Loss (major) 2 | . . . 1 . . . 1 . . Misfires 2 | . 1 . . . . 1 . . . Alerts 3 | . 1 . 1 . . . 1 . . Overload Shots . | . . . . . . . . . . Overflow Damage 96 | . . . . . . . 45 . 51 Projectiles 43 | . . . . . . . 36 . 7 Explosions . | . . . . . . . . . . Melee 53 | . . . . . . . 9 . 44 Knockbacks . | . . . . . . . . . . Impact . | . . . . . . . . . . Kinetic . | . . . . . . . . . . Secondary . | . . . . . . . . . . Self-Inflicted Damage 114 | . . 114 . . . . . . . Shots 5 | . . 5 . . . . . . . Rammed 1 | . 1 . . . . . . . . Targets Rammed 4 | . 1 . . . 1 . 2 . . Kicked 3 | . . . . . 1 . 2 . . Crushed . | . . . . . . . . . . Highest Temperature 465 | . 276 . . . 216 214 465 215 305 Average Temperature 122 | . 70 . . . 92 49 180 110 149 Received Heat Transfer 909 | . 90 132 . . 126 12 63 . 486 Effects 1 | . . . . . . . 1 . . Shutdowns 1 | . . . . . . . 1 . . Siege Activations . | . . . . . . . . . . Robots Corrupted . | . . . . . . . . . . Combat Hostiles . | . . . . . . . . . . Parts Fried . | . . . . . . . . . . Impact Corruptions . | . . . . . . . . . . Robots Melted . | . . . . . . . . . . Combat Hostiles . | . . . . . . . . . . Parts Melted 2 | . . . . . 2 . . . . Heat Transferred 703 | . . . . . . . 518 . 185 Parts Sabotaged . | . . . . . . . . . . Parts Stolen . | . . . . . . . . . . Parts Stripped . | . . . . . . . . . . Power Chain Reactions . | . . . . . . . . . . Alert | -11 -10 -10 -9 -9 -6 -6 -6 -6 -5 ------- Run | Yrd Mat Sub Rec Scr Fac Low Low Dat Pro Peak Influence 215 | 10 215 . 123 . 120 . . . . Initial 103 | . 6 . 103 . . . . . . Average 63 | 4 73 . 58 . 39 . . . . Maximum Alert Level 1 | . 1 . . . . . . . . Low Security (%) 96 | 100 93 . 100 . 100 . . . . Level 1 3 | . 6 . . . . . . . . Level 2 . | . . . . . . . . . . Level 3 . | . . . . . . . . . . Level 4 . | . . . . . . . . . . Level 5 . | . . . . . . . . . . High Security . | . . . . . . . . . . Max Security . | . . . . . . . . . . Squads Dispatched 3 | . 1 . . . 1 . 1 . . Investigation 1 | . . . . . 1 . . . . Extermination . | . . . . . . . . . . Reinforcement 1 | . 1 . . . . . . . . Assault 1 | . . . . . . . 1 . . Garrison . | . . . . . . . . . . Intercept . | . . . . . . . . . . Searches Triggered . | . . . . . . . . . . Construction Impeded . | . . . . . . . . . . Haulers Reinforced . | . . . . . . . . . . Active Scanning Responses . | . . . . . . . . . . Cargo Convoy Interrupts . | . . . . . . . . . . Stealth | -11 -10 -10 -9 -9 -6 -6 -6 -6 -5 --------- Run | Yrd Mat Sub Rec Scr Fac Low Low Dat Pro Distress Signals 1 | . 1 . . . . . . . . Communications Jammed . | . . . . . . . . . . Distress Signals . | . . . . . . . . . . Times Spotted 61 | . 24 14 . . 2 8 7 . 6 Peak Tracking Total 8 | . 5 4 . . 2 3 8 . 6 Tactical Retreats 5 | . . 1 . . . 1 3 . . Traps | -11 -10 -10 -9 -9 -6 -6 -6 -6 -5 ------- Run | Yrd Mat Sub Rec Scr Fac Low Low Dat Pro Traps Triggered 1 | . 1 . . . . . . . . Indirectly . | . . . . . . . . . . Trap Hack Attempts . | . . . . . . . . . . Triggered . | . . . . . . . . . . Disarmed 6 | . 6 . . . . . . . . Reprogrammed . | . . . . . . . . . . Reused . | . . . . . . . . . . Traps Extracted . | . . . . . . . . . . Installed . | . . . . . . . . . . Triggered 1 | . . . . . . 1 . . . Machines | -11 -10 -10 -9 -9 -6 -6 -6 -6 -5 ---------- Run | Yrd Mat Sub Rec Scr Fac Low Low Dat Pro Machines Disabled 8 | . 1 5 . . . 1 1 . . Max in Single Turn 2 | . 1 2 . . . 1 1 . . Machines Repaired . | . . . . . . . . . . Machines Dismantled . | . . . . . . . . . . Machines Sabotaged . | . . . . . . . . . . Overloaded Fab Kills . | . . . . . . . . . . Hacking | -11 -10 -10 -9 -9 -6 -6 -6 -6 -5 --------- Run | Yrd Mat Sub Rec Scr Fac Low Low Dat Pro Machines Accessed 24 | . 4 1 9 4 2 . . 4 . Terminals 11 | . 4 . 5 . 2 . . . . Fabricators . | . . . . . . . . . . Repair Stations . | . . . . . . . . . . Recycling Units 4 | . . . 4 . . . . . . Scanalyzers . | . . . . . . . . . . Garrison Access . | . . . . . . . . . . Total Hacks 93 | . 14 1 24 28 4 . . 22 . Successful 77 | . 9 1 15 28 2 . . 22 . Failed 16 | . 5 . 9 . 2 . . . . Catastrophic 2 | . . . 1 . 1 . . . . Database Lockouts . | . . . . . . . . . . Manual 11 | . 6 . 3 . 1 1 . . . Terminals 30 | . 14 . 12 . 4 . . . . Fabricators . | . . . . . . . . . . Repair Stations . | . . . . . . . . . . Recycling Units 12 | . . . 12 . . . . . . Scanalyzers . | . . . . . . . . . . Garrison Access . | . . . . . . . . . . Terminal Hacks 67 | . 9 1 5 28 2 . . 22 . Record 24 | . . . . 19 . . . 5 . Part Schematic 8 | . . . . . . . . 8 . Robot Schematic 6 | . . . . . . . . 6 . Robot Analysis 10 | . . . 1 9 . . . . . Prototype ID Bank 4 | . 1 . . . . . . 3 . Branch Access Points 1 | . . . 1 . . . . . . Terminal Index 1 | . 1 . . . . . . . . Recycling Unit Index 1 | . 1 . . . . . . . . Locate Traps 2 | . 2 . . . . . . . . Disarm Traps 1 | . 1 . . . . . . . . Transport Status 2 | . 1 . . . 1 . . . . Hauler Manifests 2 | . 1 . . . 1 . . . . Zone Layout 4 | . 1 . 3 . . . . . . Derelict Proto ID Bank 1 | . . 1 . . . . . . . Fabricator Hacks . | . . . . . . . . . . Repair Station Hacks . | . . . . . . . . . . Recycling Unit Hacks 10 | . . . 10 . . . . . . Process 2 | . . . 2 . . . . . . Report Inventory 3 | . . . 3 . . . . . . Retrieve Matter 4 | . . . 4 . . . . . . Retrieve Components 1 | . . . 1 . . . . . . Scanalyzer . | . . . . . . . . . . Garrison Access Hacks . | . . . . . . . . . . Unauthorized Hacks . | . . . . . . . . . . Terminals . | . . . . . . . . . . Fabricators . | . . . . . . . . . . Repair Stations . | . . . . . . . . . . Recycling Units . | . . . . . . . . . . Scanalyzers . | . . . . . . . . . . Garrison Access . | . . . . . . . . . . Data Cores Recovered 1 | . 1 . . . . . . . . Used . | . . . . . . . . . . Hacking Detections 13 | . 4 . 7 . 2 . . . . Full Trace Events 4 | . 1 . 2 . 1 . . . . Feedback Events 1 | . 1 . . . . . . . . Corruption 1 | . 1 . . . . . . . . Feedback Blocked . | . . . . . . . . . . Robot Schematics Acquired 6 | . . . . . . . . 6 . Robots Built . | . . . . . . . . . . Authchips . | . . . . . . . . . . Time . | . . . . . . . . . . Total Robot Build Rating . | . . . . . . . . . . Part Schematics Acquired 8 | . . . . . . . . 8 . Parts Built . | . . . . . . . . . . Authchips . | . . . . . . . . . . Time . | . . . . . . . . . . Total Part Build Rating . | . . . . . . . . . . Parts Repaired . | . . . . . . . . . . Time . | . . . . . . . . . . Parts Recycled . | . . . . . . . . . . Recycled Matter 19 | . . . 19 . . . . . . Retrieved Matter 17 | . . . 17 . . . . . . Retrieved Components 3 | . . . 3 . . . . . . Parts Scanalyzed . | . . . . . . . . . . Part Schematics Acquired . | . . . . . . . . . . Parts Damaged . | . . . . . . . . . . Bothacking | -11 -10 -10 -9 -9 -6 -6 -6 -6 -5 ------------ Run | Yrd Mat Sub Rec Scr Fac Low Low Dat Pro Used RIF Installer . | . . . . . . . . . . Robots Hacked . | . . . . . . . . . . Non-combat . | . . . . . . . . . . Combat . | . . . . . . . . . . Robot Hacks Applied . | . . . . . . . . . . Relay Couplers Released . | . . . . . . . . . . Fabnet Peak Effective % . | . . . . . . . . . . Robots Rewired . | . . . . . . . . . . Allies Hacked . | . . . . . . . . . . Hacks Repelled . | . . . . . . . . . . Allies | -11 -10 -10 -9 -9 -6 -6 -6 -6 -5 -------- Run | Yrd Mat Sub Rec Scr Fac Low Low Dat Pro Total Allies . | . . . . . . . . . . Largest Group . | . . . . . . . . . . Highest-Rated Group . | . . . . . . . . . . Highest-Rated Ally . | . . . . . . . . . . Total Orders 2 | . . . . . 2 . . . . EXPLORE 1 | . . . . . 1 . . . . RETURN 1 | . . . . . 1 . . . . Ally Attacks . | . . . . . . . . . . Total Damage . | . . . . . . . . . . Kills . | . . . . . . . . . . Allies Corrupted . | . . . . . . . . . . Allies Melted . | . . . . . . . . . . Intel | -11 -10 -10 -9 -9 -6 -6 -6 -6 -5 ------- Run | Yrd Mat Sub Rec Scr Fac Low Low Dat Pro Robot Analysis Total 10 | . . . 1 9 . . . . . Derelict Logs Recovered 3 | . . 1 . 2 . . . . . Drone Launches 1 | . . . . . 1 . . . . Drone Recoveries 1 | . . . . . 1 . . . . Exploration | -11 -10 -10 -9 -9 -6 -6 -6 -6 -5 ------------- Run | Yrd Mat Sub Rec Scr Fac Low Low Dat Pro Turns Passed 8388 | 129 2090 1094 849 2477 422 582 555 75 115 Spaces Moved 4679 | 67 619 612 517 1525 307 435 484 83 30 Core 6 | 5 . . . . . . . . 1 Treads 3335 | 62 619 612 517 1525 . . . . . Legs 1338 | . . . . . 307 435 484 83 29 Wheels . | . . . . . . . . . . Hover . | . . . . . . . . . . Flight . | . . . . . . . . . . Fastest Speed 50 | 50 160 160 160 160 90 90 90 90 90 Average Speed 140 | 154 160 160 160 160 90 90 90 90 121 Slowest Speed 400 | 160 160 160 160 160 90 90 90 90 400 Overloaded Moves . | . . . . . . . . . . Propulsion Burnouts . | . . . . . . . . . . Robots Hopped . | . . . . . . . . . . Cave-ins Triggered . | . . . . . . . . . . Exploration Rate (%) 51 | 6 85 40 97 85 10 60 59 70 6 Regions Visited 9 Branch Regions 7 Pre-discovered Areas 4 | . . 1 . 3 . . . . . Known Exits Taken 1 | . . . . . . 1 . . . Unknown Exits Taken 8 | 1 1 1 1 1 1 . 1 1 . Scrap Searched 6 | . . . . 5 . 1 . . . Spaces Dug 15 | . . 13 2 . . . . . . Terrain Destroyed 83 | . . 65 2 . 1 2 9 . 4 Melee . | . . . . . . . . . . Projectile 17 | . . . 2 . . 2 9 . 4 AOE 65 | . . 65 . . . . . . . Terrain Rammed . | . . . . . . . . . . Walls Destroyed . | . . . . . . . . . . Machines Disabled . | . . . . . . . . . . Actions | -11 -10 -10 -9 -9 -6 -6 -6 -6 -5 --------- Run | Yrd Mat Sub Rec Scr Fac Low Low Dat Pro Total 6212 | 82 1621 687 536 1570 415 587 550 83 81 Wait 1188 | . 926 27 3 10 49 117 31 1 24 Move 4670 | 66 618 611 516 1524 306 434 483 82 30 Hop . | . . . . . . . . . . Pick Up 64 | 5 14 5 6 11 15 4 4 . . Fast Attach 13 | 6 . . . 2 2 2 1 . . Attach 21 | 1 . 1 . . 9 1 3 . 6 Detach 2 | . . . . . 1 1 . . . Swap 22 | . 3 7 2 5 4 1 . . . Drop 55 | . 6 7 5 18 10 8 1 . . Fire 160 | 4 53 29 4 . 18 19 23 . 10 Melee 13 | . . . . . . . 2 . 11 Ram . | . . . . . . . . . . Kick 3 | . . . . . 1 . 2 . . Crush 1 | . 1 . . . . . . . . Escape Stasis . | . . . . . . . . . . Rewire . | . . . . . . . . . . Trap . | . . . . . . . . . . Miscellaneous . | . . . . . . . . . . Route ------- -11/Scrapyard -10/Materials (discovered 4 exits: [*Mat x2] / [*Min] / *Sub) -10/Subcaves -9/Recycling (discovered 2 exits: [*Fac] / *Scr) -9/Scraptown (discovered 2 exits: *Fac x2) -6/Factory -6/Lower Caves -6/Lower Caves -6/Data Miner -5/Proximity Caves History --------- Turn | Location | Event 9 | -11/Scrapyard | Discovered new exit (range 15) 130 | -11/Scrapyard | Entered Materials 267 | -10/Materials | Discovered new exit (range 8) 302 | -10/Materials | Build established: Mutant 614 | -10/Materials | Discovered new exit (range 16) 1162 | -10/Materials | Discovered new exit (range 16) 2175 | -10/Materials | Discovered new exit (range 6) 2220 | -10/Materials | Entered Subcaves 2549 | -10/Subcaves | Curiously followed by a Cobbler waking with a query about "LVR3C" 2559 | -10/Subcaves | Core integrity fell below 50% 2638 | -10/Subcaves | A swath of the cavern ceiling suddenly collapsed 2727 | -10/Subcaves | Core integrity fell below 20% 2739 | -10/Subcaves | Visited 4L-MR0's lab 2770 | -10/Subcaves | Found Arachnoskeleton 3035 | -10/Subcaves | Learned location of Zion (-7) 3148 | -10/Subcaves | Shifting Twisted Machinery released Sub. Machine Gun 3173 | -10/Subcaves | A swath of the cavern ceiling suddenly collapsed 3173 | -10/Subcaves | Shifting Twisted Machinery released Battle Cannon 3280 | -10/Subcaves | Discovered new exit (range 10) 3314 | -10/Subcaves | Entered Recycling 3923 | -9/Recycling | Discovered new exit (range 16) 4124 | -9/Recycling | Scanned before Scraplab entrance 4147 | -9/Recycling | Entered Scraplab 4159 | -9/Recycling | Discovered new exit (range 2) 4163 | -9/Recycling | Entered Scraptown 4163 | -9/Scraptown | System corruption cleaned by C-Scrubber 4485 | -9/Scraptown | Discovered new exit (range 11) 4588 | -9/Scraptown | Scanned Subdweller tech in exchange for log data 4593 | -9/Scraptown | Learned location of Extension (-6) 4595 | -9/Scraptown | Learned location of 1 exit from Lower Caves 4769 | -9/Scraptown | Visited Cave Peace 4848 | -9/Scraptown | Visited Cyclists 4938 | -9/Scraptown | Visited Assassins FH 4978 | -9/Scraptown | Visited The Evicted 5030 | -9/Scraptown | Visited UFD Registry 5030 | -9/Scraptown | Registered with UFD as "Flexilauncher" 5043 | -9/Scraptown | Visited IN-MT5's Study 5121 | -9/Scraptown | Entered Cyclist Reading Room 5243 | -9/Scraptown | Heard Great Nut preacher, LISTEN AND RECITE! 5515 | -9/Scraptown | Visited Botcube Research 5544 | -9/Scraptown | Visited Infowarlord's Domain 5582 | -9/Scraptown | Visited Curators Association 5617 | -9/Scraptown | Visited Analyses Database 5651 | -9/Scraptown | Visited DA-N13 Charitable Foundation 5657 | -9/Scraptown | Found DCF Scrap (26 items) 5715 | -9/Scraptown | Visited Scrap Suit Storage 5726 | -9/Scraptown | Found Scrap Suit 5767 | -9/Scraptown | Visited Supply Room 5825 | -9/Scraptown | Visited Cartography Club 6079 | -9/Scraptown | Discovered new exit (range 5) 6330 | -9/Scraptown | Visited LU-1G1's Boring Crew 6397 | -9/Scraptown | Visited Modified Component R&D 6640 | -9/Scraptown | Entered Factory 6640 | -6/Factory | Evolved 8 slots: Power x1, Propulsion x1, Utility x5, Weapon x1 6643 | -6/Factory | Attached Arachnoskeleton, gained temporary slots: Propulsion x3 6938 | -6/Factory | Build established: Gunner 6967 | -6/Factory | Discovered new exit (range 14) 7062 | -6/Factory | Entered Lower Caves 7063 | -6/Lower Caves | Identified exit to Lower Caves 7065 | -6/Lower Caves | Acquired the password to a Derelict Tinkerer's latest research 7073 | -6/Lower Caves | Found Prototype Special Weapon 7081 | -6/Lower Caves | Identified Molecular Deconstructor 7114 | -6/Lower Caves | Encountered a Warlord checkpoint 7644 | -6/Lower Caves | Entered another Lower Caves area 7780 | -6/Lower Caves | Attracted the attention of an 0b10 outpost 7893 | -6/Lower Caves | Encountered a Warlord checkpoint 8081 | -6/Lower Caves | Build established: Mutant 8110 | -6/Lower Caves | Attracted the attention of an 0b10 checkpoint 8186 | -6/Lower Caves | Discovered new exit (range 6) 8199 | -6/Lower Caves | Entered Data Miner 8199 | -6/Data Miner | Discovered new exit (range 6) 8217 | -6/Data Miner | Met Data Miner 8255 | -6/Data Miner | Received God Mode back door access code from Data Miner 8274 | -6/Data Miner | Entered Proximity Caves 8291 | -5/Proximity Caves | Spotted B-75 Beast 8341 | -5/Proximity Caves | Core integrity fell below 50% 8367 | -5/Proximity Caves | Core integrity fell below 20% 8389 | -5/Proximity Caves | Destroyed by B-75 Beast with Heavy Machine Gun Last Messages --------------- 08344_ Acquired 8 matter. 08344_ Lgt. Nuclear Core fries itself beyond repair. 08346_ Autogun fries itself beyond repair. 08347_ VTOL Module fries itself beyond repair. 08348_ Acquired 10 matter. 08348_ VTOL Module fries itself beyond repair. 08349_ Acquired 10 matter. 08350_ Acquired 2 matter. 08353_ Seismic Detector destroyed. 08355_ Mic. Fission Core destroyed. 08355_ Arm. Leg blasted off. 08360_ Carbon-fiber Leg destroyed. 08361_ Critical hit (Meltdown: +330). 08361_ Knocked back. 08365_ Entropy package works its way towards B-75 Beast core. 08367_ B-75 Beast core destabilizing. 08371_ B-75 Beast core entropy levels peaking. 08374_ OS/E|TJLZ4&AOE>EBYDZ<%SD Map ----- +----------------------------------------------------+ | ?????????????????????????????????????????? | | ?????????????????????????????????????????? | | ?????????????????????????????????????????? | | ?????????????????????????????????????????? | | ?????????????????????????????????????????? | | ?????????????????????????????????????????? | | ?????????????????????????????????????????? | | ?????????????????????????????????????????? | | ?????????????????????????????????????????? | | ?????????????????????????????????????????? | | ?????????????????????????????????????????? | | ?????????????????????????????????????????? | | ?????????????????????????????????????????? | | ?????????????????????????????????????????? | | ??????????????????????##?????????????????? | | ????????????????????? #?????????????????? | | ????????????????????? ####??????????????? | | ????????????????????? ???????????????? | | ???????????????????? ????????????????? | | ???????????????????? #????????????????? | | ???????????????????? #????????????????? | | ???????????????????# ##??## ????????? | | ??????????????????? ## ????????? | | ??????????????????? ???????? | | ???????????????#### BB ???????? | | ???????????????#%@ BB ???????? | | ???????????????#% ???????? | | ???????????????## ;;; ???????? | | ???????????????#;=% ; ???????? | | ???????????????#% ;;; ????????? | | ???????????????## ;; ????????? | | ??????????????##; ;; ????????? | | ??????????????#%; %; ;# ????????? | | ??????????????### #;;#### ?????????? | | ????????????????#s# ##???# ??????????? | | ????????????????# ###????? ??????????? | | ??????????????### ###?????? ???????????? | | ??????????????# #????????????????????? | | ??????????????# ##???????????????????? | | ??????????????## #???????????????????? | | ???????????????# #??????????????????? | | ???????????????## #?????????????????? | | ????????????????## #?????????????????? | | ?????????????????? #????????????????? | | ?????????????????? #???????????????? | | ?????????????????? #??????????????? | | ?????????????????? #?????????????? | | ??????????????????# ### ##?????????????? | | ???????????????????####??##??????????????? | | ?????????????????????????????????????????? | +----------------------------------------------------+ Best States ------------- Heat Dissipation 37 Energy Generation 27 Energy Capacity 430 Matter Stores 490 Matter Capacity 500 Sight Range 16 Terrain Scan Range 20 Terrain Scan Density 10 Armor Coverage 225 Phase Shifting 5 Evasion (%) 57 Targeting Accuracy 8 Recoil Reduction 2 Authchip Count 3 Item Schematics ----------------- Adv. Datajack | -6/Data Miner | Free Adv. Target Analyzer | -6/Data Miner | Free Imp. Linear Gravjet | -6/Data Miner | Free Hvy. Gatling Laser | -6/Data Miner | Free Exp. Heat Sink | -6/Data Miner | Free Cld. Gravmag System | -6/Data Miner | Free Lgt. Regenerative Plating | -6/Data Miner | Free Combat Drone Bay | -6/Data Miner | Free Robot Schematics ------------------ L-61 Swordsman | -6/Data Miner | Free B-60 Warrior | -6/Data Miner | Free A-15 Conveyor | -6/Data Miner | Free R-10 Processor | -6/Data Miner | Free L-41 Fighter | -6/Data Miner | Free Y-54 Guardian | -6/Data Miner | Free Fabricated ------------ Nothing Alien Tech Used ----------------- None Achievements -------------- Armchair Analyst Challenges ------------ None Game ------ Seed HeavyLinkedThruster Manual? 0 Play Time 01:26:07 Cumulative 29.6 hours Start 2024.11.20 @ 23:28:55 End 2024.11.21 @ 01:08:22 Sessions 1 Manual Loads 0 Difficulty Rogue Special Mode None Game No. 40 Rogue 40 Adventurer 0 Explorer 0 Win Type - Total 0 Types 0/0/0/0/0/0/0/0/0 Lore% 33 Gallery% 31 Achievement% 25 Wizard Run 0 Options --------- Layout 1 ASCII 0 Keyboard 0 Movement Numpad Keybinds 0 Fullscreen 1 Font 24/Smallcaps Map View 50x35 Zoom Use 0% Tactical HUD 1 Map Filters NONE Filters NONE Steam 1 RUN: f055744f-f02e-4224-b922-1e55fb536f43